[Event "Titled Tuesday Blitz November 15 Late 2022"]
[White "Baltaci, Ismail Tarik"]
[Black "Besedes, Danilo"]
[WhiteFideId "6365213"]
[BlackFideId "946796"]
[WhiteElo "2348"]
[BlackElo "2352"]
[Result "0-1"]
[Round "04"]
[TimeControl "180+1"]
[Date "2022.11.16"]
[WhiteClock "0:00:01"]
[BlackClock "0:00:42"]

1. Nf3 {[%clk 0:03:00]}  d6 {[%clk 0:03:00]} 2. d4 {[%clk 0:02:59]}  Nc6 {[%clk 0:03:00]} 3. e4 {[%clk 0:02:59]}  e5 {[%clk 0:03:00]} 4. Nc3 {[%clk 0:02:53]}  Bd7 {[%clk 0:02:59]} 5. Be3 {[%clk 0:02:52]}  Be7 {[%clk 0:02:58]} 6. Bc4 {[%clk 0:02:46]}  Nf6 {[%clk 0:02:57]} 7. h3 {[%clk 0:02:41]}  O-O {[%clk 0:02:57]} 8. dxe5 {[%clk 0:02:40]}  dxe5 {[%clk 0:02:55]} 9. O-O {[%clk 0:02:40]}  a6 {[%clk 0:02:54]} 10. a4 {[%clk 0:02:38]}  Bd6 {[%clk 0:02:53]} 11. Qe2 {[%clk 0:02:37]}  h6 {[%clk 0:02:53]} 12. Rfd1 {[%clk 0:02:32]}  Re8 {[%clk 0:02:53]} 13. Nd5 {[%clk 0:01:56]}  Nh7 {[%clk 0:02:41]} 14. c3 {[%clk 0:01:51]}  Be6 {[%clk 0:02:35]} 15. b4 {[%clk 0:01:51]}  Ng5 {[%clk 0:02:30]} 16. Nxg5 {[%clk 0:01:50]}  hxg5 {[%clk 0:02:29]} 17. Qh5 {[%clk 0:01:50]}  f6 {[%clk 0:02:21]} 18. b5 {[%clk 0:01:28]}  Na5 {[%clk 0:02:19]} 19. Ba2 {[%clk 0:01:27]}  Bf7 {[%clk 0:02:18]} 20. Qf3 {[%clk 0:01:26]}  axb5 {[%clk 0:02:16]} 21. axb5 {[%clk 0:01:26]}  b6 {[%clk 0:02:15]} 22. Nb4 {[%clk 0:01:12]}  Qe7 {[%clk 0:02:11]} 23. Bxf7+ {[%clk 0:01:09]}  Qxf7 {[%clk 0:02:11]} 24. Nd5 {[%clk 0:01:08]}  Nc4 {[%clk 0:02:10]} 25. Qe2 {[%clk 0:01:00]}  Nxe3 {[%clk 0:02:10]} 26. Nxe3 {[%clk 0:00:58]}  Bc5 {[%clk 0:02:10]} 27. Nf5 {[%clk 0:00:58]}  Kh7 {[%clk 0:01:59]} 28. Qg4 {[%clk 0:00:54]}  g6 {[%clk 0:01:57]} 29. Ng3 {[%clk 0:00:50]}  Rxa1 {[%clk 0:01:55]} 30. Rxa1 {[%clk 0:00:47]}  Rd8 {[%clk 0:01:55]} 31. Ra7 {[%clk 0:00:47]}  Rd2 {[%clk 0:01:53]} 32. Nh1 {[%clk 0:00:36]}  Qd7 {[%clk 0:01:47]} 33. Qf3 {[%clk 0:00:31]}  Kg7 {[%clk 0:01:45]} 34. Ra8 {[%clk 0:00:26]}  Qd3 {[%clk 0:01:35]} 35. Qg4 {[%clk 0:00:07]}  Qd7 {[%clk 0:01:28]} 36. Qxd7+ {[%clk 0:00:06]}  Rxd7 {[%clk 0:01:26]} 37. Rc8 {[%clk 0:00:06]}  Kf7 {[%clk 0:01:23]} 38. Kh2 {[%clk 0:00:07]}  Ke7 {[%clk 0:01:22]} 39. f3 {[%clk 0:00:07]}  Bd6 {[%clk 0:01:15]} 40. Kg3 {[%clk 0:00:07]}  Rd8 {[%clk 0:01:15]} 41. Rxd8 {[%clk 0:00:07]}  Kxd8 {[%clk 0:01:16]} 42. Nf2 {[%clk 0:00:07]}  Bc5 {[%clk 0:01:14]} 43. Nd3 {[%clk 0:00:07]}  Be3 {[%clk 0:01:13]} 44. Kg4 {[%clk 0:00:08]}  Ke7 {[%clk 0:01:12]} 45. g3 {[%clk 0:00:08]}  Ke6 {[%clk 0:01:13]} 46. h4 {[%clk 0:00:08]}  gxh4 {[%clk 0:01:12]} 47. gxh4 {[%clk 0:00:09]}  f5+ {[%clk 0:01:12]} 48. Kh3 {[%clk 0:00:09]}  Kf6 {[%clk 0:01:10]} 49. c4 {[%clk 0:00:08]}  Bd4 {[%clk 0:01:10]} 50. Kg2 {[%clk 0:00:07]}  Kg7 {[%clk 0:01:11]} 51. Kh3 {[%clk 0:00:07]}  Kh6 {[%clk 0:01:11]} 52. Kg3 {[%clk 0:00:08]}  Kh5 {[%clk 0:01:11]} 53. Ne1 {[%clk 0:00:07]}  Kh6 {[%clk 0:01:09]} 54. Nc2 {[%clk 0:00:07]}  Bc5 {[%clk 0:01:07]} 55. Ne1 {[%clk 0:00:07]}  Kg7 {[%clk 0:01:05]} 56. Nd3 {[%clk 0:00:07]}  Bd4 {[%clk 0:01:03]} 57. Nb4 {[%clk 0:00:07]}  Bc5 {[%clk 0:00:58]} 58. Nd5 {[%clk 0:00:08]}  Bd6 {[%clk 0:00:58]} 59. Kh3 {[%clk 0:00:05]}  Kf7 {[%clk 0:00:57]} 60. h5 {[%clk 0:00:04]}  fxe4 {[%clk 0:00:54]} 61. fxe4 {[%clk 0:00:05]}  gxh5 {[%clk 0:00:53]} 62. Kh4 {[%clk 0:00:05]}  Kg6 {[%clk 0:00:54]} 63. Kg3 {[%clk 0:00:05]}  Kg5 {[%clk 0:00:54]} 64. Kf3 {[%clk 0:00:05]}  h4 {[%clk 0:00:54]} 65. Ne3 {[%clk 0:00:05]}  Bc5 {[%clk 0:00:51]} 66. Nf5 {[%clk 0:00:05]}  h3 {[%clk 0:00:51]} 67. Kg3 {[%clk 0:00:04]}  h2 {[%clk 0:00:51]} 68. Kxh2 {[%clk 0:00:03]}  Kf4 {[%clk 0:00:52]} 69. Ng7 {[%clk 0:00:03]}  Kxe4 {[%clk 0:00:52]} 70. Ne6 {[%clk 0:00:04]}  Kd3 {[%clk 0:00:49]} 71. Nxc7 {[%clk 0:00:02]}  Kxc4 {[%clk 0:00:49]} 72. Kg3 {[%clk 0:00:02]}  e4 {[%clk 0:00:49]} 73. Kf4 {[%clk 0:00:02]}  Kd3 {[%clk 0:00:49]} 74. Nd5 {[%clk 0:00:02]}  e3 {[%clk 0:00:48]} 75. Kf3 {[%clk 0:00:02]}  Kd2 {[%clk 0:00:45]} 76. Nf4 {[%clk 0:00:02]}  Bd6 {[%clk 0:00:44]} 77. Ne2 {[%clk 0:00:01]}  Bh2 {[%clk 0:00:43]} 78. Nd4 {[%clk 0:00:01]}  Be5 {[%clk 0:00:43]} 79. Ne2 {[%clk 0:00:01]}  Bd6 {[%clk 0:00:43]} 80. Nd4 {[%clk 0:00:02]}  Bc5 {[%clk 0:00:44]} 81. Ne2 {[%clk 0:00:02]}  Kd3 {[%clk 0:00:44]} 82. Nf4+ {[%clk 0:00:01]}  Kc3 {[%clk 0:00:42]} 83. Nd5+ {[%clk 0:00:01]}  Kd3 {[%clk 0:00:42]} 84. Nf4+ {[%clk 0:00:01]}  Kc4 {[%clk 0:00:42]} 0-1


[Site "https://www.chess.com"]

[Event "Titled Tuesday Blitz November 15 Late 2022"]
[White "Baskakov, Egor"]
[Black "Sanal, Vahap"]
[WhiteFideId "24197866"]
[BlackFideId "6300545"]
[WhiteElo "2211"]
[BlackElo "2574"]
[Result "1-0"]
[Round "04"]
[TimeControl "180+1"]
[Date "2022.11.15"]
[WhiteClock "0:01:58"]
[BlackClock "0:01:47"]

1. e4 {[%clk 0:03:00]}  c5 {[%clk 0:03:00]} 2. Nf3 {[%clk 0:03:00]}  e6 {[%clk 0:02:59]} 3. Be2 {[%clk 0:03:00]}  a6 {[%clk 0:02:58]} 4. c4 {[%clk 0:03:00]}  d6 {[%clk 0:02:57]} 5. d4 {[%clk 0:03:00]}  cxd4 {[%clk 0:02:56]} 6. Nxd4 {[%clk 0:03:01]}  Nf6 {[%clk 0:02:57]} 7. Nc3 {[%clk 0:03:01]}  Be7 {[%clk 0:02:57]} 8. O-O {[%clk 0:03:02]}  O-O {[%clk 0:02:58]} 9. Be3 {[%clk 0:03:02]}  b6 {[%clk 0:02:58]} 10. f4 {[%clk 0:03:01]}  Bb7 {[%clk 0:02:59]} 11. Bf3 {[%clk 0:03:01]}  Qc7 {[%clk 0:02:59]} 12. Rc1 {[%clk 0:03:01]}  Nbd7 {[%clk 0:03:00]} 13. Bf2 {[%clk 0:03:00]}  Rac8 {[%clk 0:02:59]} 14. Re1 {[%clk 0:02:57]}  Qb8 {[%clk 0:02:59]} 15. b3 {[%clk 0:02:56]}  Nc5 {[%clk 0:02:52]} 16. e5 {[%clk 0:02:55]}  dxe5 {[%clk 0:02:51]} 17. fxe5 {[%clk 0:02:56]}  Nfd7 {[%clk 0:02:49]} 18. b4 {[%clk 0:02:47]}  Nxe5 {[%clk 0:02:38]} 19. bxc5 {[%clk 0:02:47]}  Nxf3+ {[%clk 0:02:38]} 20. Nxf3 {[%clk 0:02:47]}  bxc5 {[%clk 0:02:39]} 21. Rb1 {[%clk 0:02:37]}  Qc7 {[%clk 0:02:34]} 22. Bg3 {[%clk 0:02:30]}  Qc6 {[%clk 0:02:34]} 23. Na4 {[%clk 0:02:20]}  Bd8 {[%clk 0:02:20]} 24. Re2 {[%clk 0:02:07]}  Ba5 {[%clk 0:02:15]} 25. Ne5 {[%clk 0:02:03]}  Qc7 {[%clk 0:02:03]} 26. Ng6 {[%clk 0:01:59]}  Rfd8 {[%clk 0:01:47]} 27. Bxc7 {[%clk 0:01:58]} 1-0


[Site "https://www.chess.com"]

[Event "Titled Tuesday Blitz November 15 Late 2022"]
[White "Bazzano, Sebastian"]
[Black "Winterberg, Lukas"]
[WhiteFideId "104566"]
[BlackFideId "24622702"]
[WhiteElo "2268"]
[BlackElo "2349"]
[Result "0-1"]
[Round "04"]
[TimeControl "180+1"]
[Date "2022.11.16"]
[WhiteClock "0:00:01"]
[BlackClock "0:00:53"]

1. d4 {[%clk 0:03:00]}  Nf6 {[%clk 0:02:58]} 2. Bf4 {[%clk 0:02:59]}  g6 {[%clk 0:02:59]} 3. Nc3 {[%clk 0:02:58]}  Bg7 {[%clk 0:03:00]} 4. e4 {[%clk 0:02:58]}  O-O {[%clk 0:02:59]} 5. Qd2 {[%clk 0:02:58]}  c5 {[%clk 0:02:58]} 6. d5 {[%clk 0:02:47]}  e6 {[%clk 0:02:54]} 7. O-O-O {[%clk 0:02:36]}  exd5 {[%clk 0:02:50]} 8. exd5 {[%clk 0:02:17]}  Qa5 {[%clk 0:02:35]} 9. Nf3 {[%clk 0:02:04]}  Ne4 {[%clk 0:02:16]} 10. Nxe4 {[%clk 0:01:48]}  Qxa2 {[%clk 0:02:17]} 11. Qe3 {[%clk 0:01:21]}  Qxb2+ {[%clk 0:02:08]} 12. Kd2 {[%clk 0:01:20]}  Qb4+ {[%clk 0:01:57]} 13. c3 {[%clk 0:01:04]}  Qb2+ {[%clk 0:01:53]} 14. Ke1 {[%clk 0:01:01]}  f5 {[%clk 0:01:41]} 15. Ned2 {[%clk 0:00:36]}  Bxc3 {[%clk 0:01:41]} 16. Be2 {[%clk 0:00:17]}  Na6 {[%clk 0:01:32]} 17. Be5 {[%clk 0:00:16]}  Bxe5 {[%clk 0:01:17]} 18. Qxe5 {[%clk 0:00:15]}  Qxe5 {[%clk 0:01:12]} 19. Nxe5 {[%clk 0:00:16]}  Re8 {[%clk 0:01:12]} 20. f4 {[%clk 0:00:08]}  Nb4 {[%clk 0:01:05]} 21. Kf2 {[%clk 0:00:07]}  Nxd5 {[%clk 0:01:02]} 22. Bc4 {[%clk 0:00:06]}  Kg7 {[%clk 0:01:02]} 23. Bxd5 {[%clk 0:00:05]}  d6 {[%clk 0:01:03]} 24. Nec4 {[%clk 0:00:04]}  Be6 {[%clk 0:01:02]} 25. Bxe6 {[%clk 0:00:03]}  Rxe6 {[%clk 0:01:03]} 26. Nf3 {[%clk 0:00:04]}  b5 {[%clk 0:01:02]} 27. Nxd6 {[%clk 0:00:01]}  c4 {[%clk 0:00:59]} 28. Rhe1 {[%clk 0:00:01]}  Rxe1 {[%clk 0:00:58]} 29. Nxe1 {[%clk 0:00:01]}  a6 {[%clk 0:00:55]} 30. Nb7 {[%clk 0:00:01]}  Kh6 {[%clk 0:00:54]} 31. Nc5 {[%clk 0:00:01]}  a5 {[%clk 0:00:53]} 32. Nc2 {[%clk 0:00:01]}  Rc8 {[%clk 0:00:53]} 0-1


[Site "https://www.chess.com"]

[Event "Titled Tuesday Blitz November 15 Late 2022"]
[White "Beerdsen, Thomas"]
[Black "Gurevich, Dmitry"]
[WhiteFideId "1030108"]
[BlackFideId "2000407"]
[WhiteElo "2567"]
[BlackElo "2506"]
[Result "1/2-1/2"]
[Round "04"]
[TimeControl "180+1"]
[Date "2022.11.16"]
[WhiteClock "0:01:00"]
[BlackClock "0:00:16"]

1. e4 {[%clk 0:03:00]}  c5 {[%clk 0:02:58]} 2. Nf3 {[%clk 0:03:00]}  d6 {[%clk 0:02:58]} 3. d4 {[%clk 0:03:01]}  cxd4 {[%clk 0:02:58]} 4. Nxd4 {[%clk 0:03:02]}  Nf6 {[%clk 0:02:57]} 5. Nc3 {[%clk 0:03:02]}  Nc6 {[%clk 0:02:57]} 6. Nd5 {[%clk 0:03:02]}  Nxd5 {[%clk 0:02:52]} 7. exd5 {[%clk 0:03:03]}  Qa5+ {[%clk 0:02:51]} 8. Bd2 {[%clk 0:03:04]}  Qxd5 {[%clk 0:02:51]} 9. Nb5 {[%clk 0:03:05]}  Qe6+ {[%clk 0:02:50]} 10. Be2 {[%clk 0:03:05]}  Qd7 {[%clk 0:02:50]} 11. O-O {[%clk 0:03:06]}  a6 {[%clk 0:02:48]} 12. Nc3 {[%clk 0:03:06]}  e6 {[%clk 0:02:46]} 13. Na4 {[%clk 0:03:06]}  Qc7 {[%clk 0:02:44]} 14. Be3 {[%clk 0:03:06]}  Be7 {[%clk 0:02:42]} 15. Nb6 {[%clk 0:03:05]}  Rb8 {[%clk 0:02:41]} 16. c4 {[%clk 0:03:05]}  O-O {[%clk 0:02:40]} 17. Rc1 {[%clk 0:03:06]}  Rd8 {[%clk 0:02:36]} 18. f4 {[%clk 0:03:03]}  Bd7 {[%clk 0:02:35]} 19. Bf3 {[%clk 0:03:00]}  Be8 {[%clk 0:02:31]} 20. a3 {[%clk 0:02:51]}  Bf6 {[%clk 0:02:31]} 21. Qd2 {[%clk 0:02:46]}  Ne7 {[%clk 0:02:26]} 22. Rfd1 {[%clk 0:02:40]}  Nc8 {[%clk 0:02:16]} 23. Nxc8 {[%clk 0:02:28]}  Rbxc8 {[%clk 0:02:15]} 24. Qf2 {[%clk 0:02:24]}  Qe7 {[%clk 0:02:09]} 25. Bb6 {[%clk 0:02:19]}  Rd7 {[%clk 0:02:09]} 26. b4 {[%clk 0:02:17]}  g6 {[%clk 0:02:04]} 27. g3 {[%clk 0:02:10]}  Qf8 {[%clk 0:01:59]} 28. Qg2 {[%clk 0:02:09]}  Qe7 {[%clk 0:01:52]} 29. Rc2 {[%clk 0:02:04]}  h5 {[%clk 0:01:48]} 30. a4 {[%clk 0:01:53]}  Rb8 {[%clk 0:01:43]} 31. a5 {[%clk 0:01:52]}  Qf8 {[%clk 0:01:43]} 32. Rcd2 {[%clk 0:01:51]}  Bd8 {[%clk 0:01:17]} 33. Bxd8 {[%clk 0:01:45]}  Rdxd8 {[%clk 0:01:07]} 34. Bxb7 {[%clk 0:01:45]}  Qe7 {[%clk 0:01:06]} 35. Bxa6 {[%clk 0:01:39]}  Qa7+ {[%clk 0:01:05]} 36. c5 {[%clk 0:01:36]}  Qxa6 {[%clk 0:01:04]} 37. Rxd6 {[%clk 0:01:36]}  Rxd6 {[%clk 0:01:00]} 38. Rxd6 {[%clk 0:01:37]}  Qc4 {[%clk 0:00:57]} 39. Rb6 {[%clk 0:01:28]}  Rd8 {[%clk 0:00:54]} 40. Rd6 {[%clk 0:01:29]}  Rxd6 {[%clk 0:00:51]} 41. cxd6 {[%clk 0:01:30]}  Qxb4 {[%clk 0:00:47]} 42. Qa8 {[%clk 0:01:27]}  Kf8 {[%clk 0:00:42]} 43. Qd8 {[%clk 0:01:24]}  Qb5 {[%clk 0:00:30]} 44. a6 {[%clk 0:01:22]}  Qd7 {[%clk 0:00:25]} 45. Qc7 {[%clk 0:01:04]}  Qa4 {[%clk 0:00:21]} 46. a7 {[%clk 0:01:03]}  Qd1+ {[%clk 0:00:20]} 47. Kf2 {[%clk 0:01:00]}  Qd2+ {[%clk 0:00:20]} 48. Kf3 {[%clk 0:01:00]}  Qd3+ {[%clk 0:00:19]} 49. Kf2 {[%clk 0:01:00]}  Qd2+ {[%clk 0:00:16]} 50. Kf3 {[%clk 0:00:59]}  Qd3+ {[%clk 0:00:16]} 51. Kf2 {[%clk 0:01:00]}  Qd2+ {[%clk 0:00:16]} 1/2-1/2


[Site "https://www.chess.com"]

[Event "Titled Tuesday Blitz November 15 Late 2022"]
[White "Bogaudinov, Rushan"]
[Black "Young, Ryan"]
[WhiteFideId "4129288"]
[BlackFideId "2049945"]
[WhiteElo "1997"]
[BlackElo "2292"]
[Result "1/2-1/2"]
[Round "04"]
[TimeControl "180+1"]
[Date "2022.11.16"]
[WhiteClock "0:00:08"]
[BlackClock "0:00:08"]

1. d4 {[%clk 0:02:45]}  Nf6 {[%clk 0:02:59]} 2. Nf3 {[%clk 0:02:45]}  g6 {[%clk 0:02:59]} 3. g3 {[%clk 0:02:46]}  Bg7 {[%clk 0:02:58]} 4. Bg2 {[%clk 0:02:47]}  O-O {[%clk 0:02:59]} 5. O-O {[%clk 0:02:47]}  d5 {[%clk 0:02:57]} 6. c4 {[%clk 0:02:47]}  dxc4 {[%clk 0:02:57]} 7. Nc3 {[%clk 0:02:47]}  c6 {[%clk 0:02:51]} 8. Ne5 {[%clk 0:02:47]}  Ng4 {[%clk 0:02:43]} 9. Nxg4 {[%clk 0:02:26]}  Bxg4 {[%clk 0:02:42]} 10. Be3 {[%clk 0:02:27]}  Be6 {[%clk 0:02:36]} 11. a4 {[%clk 0:02:26]}  Nd7 {[%clk 0:02:33]} 12. a5 {[%clk 0:02:26]}  Qc8 {[%clk 0:02:23]} 13. f3 {[%clk 0:02:23]}  Nf6 {[%clk 0:01:51]} 14. Bf2 {[%clk 0:02:20]}  Bh3 {[%clk 0:01:33]} 15. Qa4 {[%clk 0:02:16]}  Bxg2 {[%clk 0:01:31]} 16. Kxg2 {[%clk 0:02:16]}  c5 {[%clk 0:01:25]} 17. d5 {[%clk 0:02:08]}  Rd8 {[%clk 0:01:15]} 18. e4 {[%clk 0:02:07]}  b6 {[%clk 0:01:04]} 19. Qxc4 {[%clk 0:02:05]}  Nd7 {[%clk 0:00:56]} 20. f4 {[%clk 0:02:00]}  Nf8 {[%clk 0:00:40]} 21. Rfd1 {[%clk 0:01:50]}  e6 {[%clk 0:00:32]} 22. d6 {[%clk 0:01:45]}  e5 {[%clk 0:00:26]} 23. a6 {[%clk 0:01:38]}  exf4 {[%clk 0:00:25]} 24. gxf4 {[%clk 0:01:38]}  Qg4+ {[%clk 0:00:23]} 25. Bg3 {[%clk 0:01:38]}  Ne6 {[%clk 0:00:21]} 26. e5 {[%clk 0:01:33]}  Rab8 {[%clk 0:00:15]} 27. Nb5 {[%clk 0:01:25]}  g5 {[%clk 0:00:12]} 28. h3 {[%clk 0:01:12]}  Qh5 {[%clk 0:00:10]} 29. f5 {[%clk 0:01:08]}  Nf4+ {[%clk 0:00:07]} 30. Bxf4 {[%clk 0:01:07]}  gxf4 {[%clk 0:00:08]} 31. f6 {[%clk 0:01:00]}  Bh6 {[%clk 0:00:09]} 32. Qe4 {[%clk 0:00:56]}  Kh8 {[%clk 0:00:08]} 33. d7 {[%clk 0:00:31]}  Rg8+ {[%clk 0:00:09]} 34. Kh2 {[%clk 0:00:31]}  Qh4 {[%clk 0:00:05]} 35. Qf3 {[%clk 0:00:21]}  Rg3 {[%clk 0:00:05]} 36. d8=Q+ {[%clk 0:00:21]}  Bf8 {[%clk 0:00:04]} 37. Qg2 {[%clk 0:00:09]}  Rxg2+ {[%clk 0:00:04]} 38. Kxg2 {[%clk 0:00:10]}  Qg3+ {[%clk 0:00:05]} 39. Kf1 {[%clk 0:00:10]}  Qxh3+ {[%clk 0:00:05]} 40. Kf2 {[%clk 0:00:08]}  Qe3+ {[%clk 0:00:06]} 41. Kf1 {[%clk 0:00:08]}  Qf3+ {[%clk 0:00:06]} 42. Ke1 {[%clk 0:00:07]}  Qe3+ {[%clk 0:00:07]} 43. Kf1 {[%clk 0:00:07]}  Qf3+ {[%clk 0:00:07]} 44. Ke1 {[%clk 0:00:08]}  Qe3+ {[%clk 0:00:08]} 45. Kf1 {[%clk 0:00:08]} 1/2-1/2


[Site "https://www.chess.com"]

[Event "Titled Tuesday Blitz November 15 Late 2022"]
[White "Bordi, Kevin"]
[Black "Dzierzak, Radoslaw"]
[WhiteFideId "621862"]
[BlackFideId "1161407"]
[WhiteElo "2803"]
[BlackElo "2111"]
[Result "0-1"]
[Round "04"]
[TimeControl "180+1"]
[Date "2022.11.16"]
[WhiteClock "0:00:18"]
[BlackClock "0:00:14"]

1. e4 {[%clk 0:03:00]}  c6 {[%clk 0:03:00]} 2. c4 {[%clk 0:03:00]}  d5 {[%clk 0:03:00]} 3. cxd5 {[%clk 0:03:01]}  cxd5 {[%clk 0:03:01]} 4. exd5 {[%clk 0:03:02]}  Nf6 {[%clk 0:03:01]} 5. Nc3 {[%clk 0:03:03]}  Nxd5 {[%clk 0:03:01]} 6. Nf3 {[%clk 0:03:04]}  Nc6 {[%clk 0:02:53]} 7. Bc4 {[%clk 0:03:04]}  e6 {[%clk 0:02:53]} 8. O-O {[%clk 0:03:03]}  Be7 {[%clk 0:02:54]} 9. d4 {[%clk 0:03:03]}  O-O {[%clk 0:02:54]} 10. Re1 {[%clk 0:03:03]}  b6 {[%clk 0:02:48]} 11. Nxd5 {[%clk 0:03:02]}  exd5 {[%clk 0:02:48]} 12. Bb3 {[%clk 0:02:57]}  Bg4 {[%clk 0:02:37]} 13. Be3 {[%clk 0:02:56]}  Bf6 {[%clk 0:02:36]} 14. h3 {[%clk 0:02:56]}  Bh5 {[%clk 0:02:35]} 15. Rc1 {[%clk 0:02:53]}  Rc8 {[%clk 0:02:34]} 16. g4 {[%clk 0:02:43]}  Bg6 {[%clk 0:02:34]} 17. Qd2 {[%clk 0:02:34]}  Be4 {[%clk 0:01:50]} 18. Ng5 {[%clk 0:02:33]}  Bxg5 {[%clk 0:01:48]} 19. Bxg5 {[%clk 0:02:33]}  Qd6 {[%clk 0:01:36]} 20. Rc3 {[%clk 0:02:11]}  Na5 {[%clk 0:01:29]} 21. Bf4 {[%clk 0:02:06]}  Qd7 {[%clk 0:01:23]} 22. f3 {[%clk 0:02:01]}  Nxb3 {[%clk 0:01:22]} 23. axb3 {[%clk 0:01:55]}  Bg6 {[%clk 0:01:16]} 24. Rec1 {[%clk 0:01:41]}  Rxc3 {[%clk 0:01:15]} 25. bxc3 {[%clk 0:01:41]}  Qb5 {[%clk 0:01:11]} 26. b4 {[%clk 0:01:39]}  Re8 {[%clk 0:01:08]} 27. Re1 {[%clk 0:01:37]}  h6 {[%clk 0:01:08]} 28. Re5 {[%clk 0:01:00]}  Rxe5 {[%clk 0:01:07]} 29. dxe5 {[%clk 0:00:59]}  a5 {[%clk 0:01:03]} 30. bxa5 {[%clk 0:00:58]}  bxa5 {[%clk 0:01:03]} 31. Be3 {[%clk 0:00:53]}  a4 {[%clk 0:00:55]} 32. f4 {[%clk 0:00:45]}  Be4 {[%clk 0:00:51]} 33. Bd4 {[%clk 0:00:42]}  Qb1+ {[%clk 0:00:42]} 34. Kh2 {[%clk 0:00:35]}  a3 {[%clk 0:00:38]} 35. c4 {[%clk 0:00:31]}  dxc4 {[%clk 0:00:37]} 36. f5 {[%clk 0:00:30]}  Qh1+ {[%clk 0:00:29]} 37. Kg3 {[%clk 0:00:30]}  Qf3+ {[%clk 0:00:27]} 38. Kh2 {[%clk 0:00:25]}  Qd3 {[%clk 0:00:22]} 39. Qc3 {[%clk 0:00:25]}  Qe2+ {[%clk 0:00:19]} 40. Kg3 {[%clk 0:00:25]}  Qg2+ {[%clk 0:00:19]} 41. Kf4 {[%clk 0:00:24]}  Bd5 {[%clk 0:00:14]} 42. e6 {[%clk 0:00:22]}  Qe4+ {[%clk 0:00:12]} 43. Kg3 {[%clk 0:00:22]}  Qg2+ {[%clk 0:00:12]} 44. Kf4 {[%clk 0:00:23]}  Qh2+ {[%clk 0:00:09]} 45. Qg3 {[%clk 0:00:19]}  Qxg3+ {[%clk 0:00:09]} 46. Kxg3 {[%clk 0:00:19]}  fxe6 {[%clk 0:00:09]} 47. fxe6 {[%clk 0:00:19]}  Bxe6 {[%clk 0:00:09]} 48. h4 {[%clk 0:00:19]}  g5 {[%clk 0:00:08]} 49. hxg5 {[%clk 0:00:18]}  hxg5 {[%clk 0:00:09]} 50. Kf3 {[%clk 0:00:17]}  Kf7 {[%clk 0:00:09]} 51. Be5 {[%clk 0:00:17]}  Ke7 {[%clk 0:00:07]} 52. Ke3 {[%clk 0:00:15]}  a2 {[%clk 0:00:06]} 53. Kd2 {[%clk 0:00:14]}  Bxg4 {[%clk 0:00:06]} 54. Kc1 {[%clk 0:00:15]}  Be2 {[%clk 0:00:06]} 55. Kb2 {[%clk 0:00:15]}  Bd3 {[%clk 0:00:05]} 56. Kxa2 {[%clk 0:00:15]}  Ke6 {[%clk 0:00:06]} 57. Bb8 {[%clk 0:00:14]}  Kf5 {[%clk 0:00:06]} 58. Kb2 {[%clk 0:00:15]}  Ke4 {[%clk 0:00:06]} 59. Kc3 {[%clk 0:00:16]}  Kf3 {[%clk 0:00:07]} 60. Kd2 {[%clk 0:00:17]}  g4 {[%clk 0:00:07]} 61. Ke1 {[%clk 0:00:17]}  Kg2 {[%clk 0:00:07]} 62. Be5 {[%clk 0:00:17]}  g3 {[%clk 0:00:08]} 63. Bd6 {[%clk 0:00:14]}  Kh3 {[%clk 0:00:05]} 64. Bc7 {[%clk 0:00:14]}  Kg2 {[%clk 0:00:06]} 65. Be5 {[%clk 0:00:14]}  Kf3 {[%clk 0:00:06]} 66. Bd6 {[%clk 0:00:14]}  g2 {[%clk 0:00:07]} 67. Bh2 {[%clk 0:00:14]}  c3 {[%clk 0:00:07]} 68. Bg1 {[%clk 0:00:15]}  Bf1 {[%clk 0:00:05]} 69. Bd4 {[%clk 0:00:13]}  c2 {[%clk 0:00:04]} 70. Kd2 {[%clk 0:00:14]}  Bd3 {[%clk 0:00:03]} 71. Bg1 {[%clk 0:00:14]}  Bf5 {[%clk 0:00:03]} 72. Bd4 {[%clk 0:00:13]}  Kg3 {[%clk 0:00:03]} 73. Bg1 {[%clk 0:00:13]}  Kg4 {[%clk 0:00:03]} 74. Kc1 {[%clk 0:00:14]}  Kg3 {[%clk 0:00:03]} 75. Kd2 {[%clk 0:00:15]}  Kg4 {[%clk 0:00:04]} 76. Kc1 {[%clk 0:00:15]}  Kh5 {[%clk 0:00:04]} 77. Kd2 {[%clk 0:00:15]}  Kg6 {[%clk 0:00:05]} 78. Kc1 {[%clk 0:00:16]}  Kf7 {[%clk 0:00:06]} 79. Be3 {[%clk 0:00:16]}  Ke6 {[%clk 0:00:07]} 80. Kd2 {[%clk 0:00:16]}  Kd5 {[%clk 0:00:08]} 81. Bg1 {[%clk 0:00:17]}  Kc4 {[%clk 0:00:08]} 82. Kc1 {[%clk 0:00:17]}  Kb3 {[%clk 0:00:09]} 83. Bf2 {[%clk 0:00:18]}  Kc4 {[%clk 0:00:09]} 84. Bg1 {[%clk 0:00:19]}  Kd3 {[%clk 0:00:09]} 85. Bb6 {[%clk 0:00:16]}  Ke2 {[%clk 0:00:09]} 86. Bc5 {[%clk 0:00:16]}  Kf1 {[%clk 0:00:10]} 87. Kd2 {[%clk 0:00:16]}  g1=Q {[%clk 0:00:11]} 88. Bxg1 {[%clk 0:00:16]}  Kxg1 {[%clk 0:00:12]} 89. Kc1 {[%clk 0:00:17]}  Kf1 {[%clk 0:00:12]} 90. Kd2 {[%clk 0:00:17]}  Kf2 {[%clk 0:00:13]} 91. Kc1 {[%clk 0:00:18]}  Ke2 {[%clk 0:00:13]} 92. Kb2 {[%clk 0:00:18]}  Kd2 {[%clk 0:00:14]} 0-1


[Site "https://www.chess.com"]

[Event "Titled Tuesday Blitz November 15 Late 2022"]
[White "Bulgurlu, Okan"]
[Black "Sreyas Payyappat"]
[WhiteFideId "6352316"]
[BlackFideId "46674969"]
[WhiteElo "2266"]
[BlackElo "2083"]
[Result "0-1"]
[Round "04"]
[TimeControl "180+1"]
[Date "2022.11.16"]
[WhiteClock "0:00:52"]
[BlackClock "0:00:49"]

1. e4 {[%clk 0:03:00]}  c6 {[%clk 0:03:00]} 2. Nf3 {[%clk 0:02:58]}  d5 {[%clk 0:03:00]} 3. d3 {[%clk 0:02:58]}  dxe4 {[%clk 0:03:00]} 4. dxe4 {[%clk 0:02:59]}  Qxd1+ {[%clk 0:03:00]} 5. Kxd1 {[%clk 0:03:00]}  Bg4 {[%clk 0:03:00]} 6. Be2 {[%clk 0:03:00]}  Nd7 {[%clk 0:03:00]} 7. Be3 {[%clk 0:02:48]}  O-O-O {[%clk 0:02:59]} 8. Nbd2 {[%clk 0:02:47]}  Ngf6 {[%clk 0:02:54]} 9. h3 {[%clk 0:02:39]}  Bxf3 {[%clk 0:02:53]} 10. Bxf3 {[%clk 0:02:39]}  e5 {[%clk 0:02:50]} 11. Ke2 {[%clk 0:02:38]}  Bc5 {[%clk 0:02:47]} 12. Nc4 {[%clk 0:02:36]}  Bxe3 {[%clk 0:02:46]} 13. Nxe3 {[%clk 0:02:37]}  Nc5 {[%clk 0:02:46]} 14. Nf5 {[%clk 0:02:24]}  Ncxe4 {[%clk 0:02:42]} 15. Nxg7 {[%clk 0:02:21]}  Ng5 {[%clk 0:01:52]} 16. Rad1 {[%clk 0:02:09]}  Nxf3 {[%clk 0:01:45]} 17. Kxf3 {[%clk 0:02:07]}  e4+ {[%clk 0:01:39]} 18. Ke3 {[%clk 0:02:00]}  Rxd1 {[%clk 0:01:27]} 19. Rxd1 {[%clk 0:01:57]}  Rg8 {[%clk 0:01:27]} 20. Nf5 {[%clk 0:01:47]}  Rxg2 {[%clk 0:01:28]} 21. Nd6+ {[%clk 0:01:27]}  Kc7 {[%clk 0:01:27]} 22. Nxf7 {[%clk 0:01:28]}  Rh2 {[%clk 0:01:25]} 23. Ng5 {[%clk 0:01:27]}  h6 {[%clk 0:01:21]} 24. Nxe4 {[%clk 0:01:26]}  Rxh3+ {[%clk 0:01:21]} 25. f3 {[%clk 0:01:27]}  Nd5+ {[%clk 0:01:19]} 26. Ke2 {[%clk 0:01:18]}  Rh2+ {[%clk 0:01:16]} 27. Nf2 {[%clk 0:01:18]}  h5 {[%clk 0:01:15]} 28. c4 {[%clk 0:01:17]}  Nf4+ {[%clk 0:01:10]} 29. Ke3 {[%clk 0:01:17]}  Ng2+ {[%clk 0:01:10]} 30. Ke2 {[%clk 0:01:06]}  Nf4+ {[%clk 0:01:02]} 31. Ke3 {[%clk 0:01:06]}  Nh3 {[%clk 0:00:55]} 32. Nd3 {[%clk 0:00:56]}  h4 {[%clk 0:00:52]} 33. f4 {[%clk 0:00:56]}  Rg2 {[%clk 0:00:49]} 34. Rh1 {[%clk 0:00:55]}  Rg3+ {[%clk 0:00:48]} 35. Ke4 {[%clk 0:00:53]}  Rxd3 {[%clk 0:00:49]} 36. f5 {[%clk 0:00:53]}  Nf2+ {[%clk 0:00:48]} 37. Kf4 {[%clk 0:00:52]}  Nxh1 {[%clk 0:00:49]} 0-1


[Site "https://www.chess.com"]